[Event "Titled Tuesday Blitz August 22 Late 2023"]
[White "Dominguez Perez, Leinier"]
[Black "Erzhanov, Arman"]
[WhiteFideId "3503240"]
[BlackFideId "4138821"]
[WhiteElo "2935"]
[BlackElo "2579"]
[Result "1-0"]
[Round "2"]
[TimeControl "180+1"]
[Date "2023.08.22"]
[WhiteClock "0:00:58"]
[BlackClock "0:00:56"]
[Board "30"]

1. e4 {[%clk 0:03:00]}  d6 {[%clk 0:03:00]} 2. d4 {[%clk 0:03:00]}  Nf6 {[%clk 0:03:00]} 3. Nc3 {[%clk 0:03:01]}  c6 {[%clk 0:03:01]} 4. f4 {[%clk 0:03:00]}  d5 {[%clk 0:03:01]} 5. e5 {[%clk 0:02:59]}  Ng8 {[%clk 0:03:01]} 6. Bd3 {[%clk 0:02:58]}  h5 {[%clk 0:03:02]} 7. Nf3 {[%clk 0:02:54]}  Nh6 {[%clk 0:03:02]} 8. Be3 {[%clk 0:02:51]}  g6 {[%clk 0:03:02]} 9. Qd2 {[%clk 0:02:50]}  Bg4 {[%clk 0:03:02]} 10. O-O {[%clk 0:02:48]}  e6 {[%clk 0:03:02]} 11. h3 {[%clk 0:02:47]}  Bxf3 {[%clk 0:02:55]} 12. Rxf3 {[%clk 0:02:46]}  h4 {[%clk 0:02:55]} 13. Ne2 {[%clk 0:02:44]}  Nf5 {[%clk 0:02:55]} 14. Bf2 {[%clk 0:02:44]}  Be7 {[%clk 0:02:55]} 15. c3 {[%clk 0:02:32]}  Nd7 {[%clk 0:02:53]} 16. Kh2 {[%clk 0:02:28]}  c5 {[%clk 0:02:51]} 17. a4 {[%clk 0:02:15]}  c4 {[%clk 0:02:50]} 18. Bc2 {[%clk 0:02:15]}  a6 {[%clk 0:02:45]} 19. Be1 {[%clk 0:02:09]}  b5 {[%clk 0:02:43]} 20. Rf1 {[%clk 0:02:08]}  Kf8 {[%clk 0:02:43]} 21. Ng1 {[%clk 0:02:08]}  Kg7 {[%clk 0:02:42]} 22. Nf3 {[%clk 0:02:08]}  Qb6 {[%clk 0:02:38]} 23. axb5 {[%clk 0:02:06]}  Qxb5 {[%clk 0:02:31]} 24. Ra2 {[%clk 0:02:04]}  Nb6 {[%clk 0:02:26]} 25. Bf2 {[%clk 0:02:04]}  Nd7 {[%clk 0:02:11]} 26. Rfa1 {[%clk 0:02:02]}  Nb8 {[%clk 0:02:11]} 27. Qe1 {[%clk 0:01:55]}  Rh5 {[%clk 0:01:44]} 28. Bxf5 {[%clk 0:01:52]}  Rxf5 {[%clk 0:01:44]} 29. Bxh4 {[%clk 0:01:53]}  Bxh4 {[%clk 0:01:42]} 30. Qxh4 {[%clk 0:01:52]}  Qe8 {[%clk 0:01:40]} 31. Ng5 {[%clk 0:01:48]}  Qh8 {[%clk 0:01:35]} 32. Qxh8+ {[%clk 0:01:44]}  Kxh8 {[%clk 0:01:36]} 33. g4 {[%clk 0:01:44]}  Rxf4 {[%clk 0:01:36]} 34. Kg3 {[%clk 0:01:44]}  Re4 {[%clk 0:01:30]} 35. Nxe4 {[%clk 0:01:41]}  dxe4 {[%clk 0:01:31]} 36. Kf4 {[%clk 0:01:40]}  Ra7 {[%clk 0:01:30]} 37. Kxe4 {[%clk 0:01:39]}  Kg7 {[%clk 0:01:30]} 38. h4 {[%clk 0:01:28]}  Rb7 {[%clk 0:01:30]} 39. h5 {[%clk 0:01:27]}  Kh6 {[%clk 0:01:30]} 40. Rh1 {[%clk 0:01:14]}  Kg7 {[%clk 0:01:20]} 41. h6+ {[%clk 0:01:14]}  Kh7 {[%clk 0:01:21]} 42. g5 {[%clk 0:01:15]}  Rd7 {[%clk 0:01:19]} 43. Rha1 {[%clk 0:01:12]}  Rb7 {[%clk 0:01:19]} 44. d5 {[%clk 0:01:08]}  exd5+ {[%clk 0:01:19]} 45. Kxd5 {[%clk 0:01:09]}  Rb5+ {[%clk 0:01:18]} 46. Kxc4 {[%clk 0:01:07]}  Rxe5 {[%clk 0:01:18]} 47. Ra5 {[%clk 0:01:07]}  Re4+ {[%clk 0:01:17]} 48. Kd3 {[%clk 0:01:07]}  Rg4 {[%clk 0:01:15]} 49. Rf1 {[%clk 0:01:06]}  Kg8 {[%clk 0:01:14]} 50. Re5 {[%clk 0:01:03]}  Rg3+ {[%clk 0:01:11]} 51. Kc2 {[%clk 0:01:01]}  Rg2+ {[%clk 0:01:06]} 52. Kb1 {[%clk 0:00:58]}  Kf8 {[%clk 0:00:56]} 53. Rfe1 {[%clk 0:00:58]} 1-0


[Site "https://www.chess.com"]

[Event "Titled Tuesday Blitz August 22 Late 2023"]
[White "Badelka, Olga"]
[Black "Henriquez Villagra, Cristobal"]
[WhiteFideId "13509926"]
[BlackFideId "3409350"]
[WhiteElo "2578"]
[BlackElo "2932"]
[Result "0-1"]
[Round "2"]
[TimeControl "180+1"]
[Date "2023.08.22"]
[WhiteClock "0:00:02"]
[BlackClock "0:00:23"]
[Board "31"]

1. d4 {[%clk 0:03:00]}  d6 {[%clk 0:03:00]} 2. e4 {[%clk 0:03:00]}  Nf6 {[%clk 0:03:00]} 3. Bd3 {[%clk 0:02:56]}  e5 {[%clk 0:02:59]} 4. c3 {[%clk 0:02:50]}  Be7 {[%clk 0:02:58]} 5. Nf3 {[%clk 0:02:49]}  Nbd7 {[%clk 0:02:59]} 6. O-O {[%clk 0:02:48]}  O-O {[%clk 0:02:59]} 7. Re1 {[%clk 0:02:49]}  Re8 {[%clk 0:03:00]} 8. Nbd2 {[%clk 0:02:46]}  Bf8 {[%clk 0:02:59]} 9. Nf1 {[%clk 0:02:45]}  c6 {[%clk 0:02:48]} 10. Bg5 {[%clk 0:02:32]}  a5 {[%clk 0:02:45]} 11. a4 {[%clk 0:02:30]}  h6 {[%clk 0:02:38]} 12. Bd2 {[%clk 0:02:19]}  exd4 {[%clk 0:02:16]} 13. cxd4 {[%clk 0:02:17]}  c5 {[%clk 0:02:17]} 14. e5 {[%clk 0:01:33]}  dxe5 {[%clk 0:02:12]} 15. dxe5 {[%clk 0:01:32]}  Nd5 {[%clk 0:02:03]} 16. Bb5 {[%clk 0:01:22]}  Re6 {[%clk 0:01:55]} 17. Bxh6 {[%clk 0:01:15]}  Rxh6 {[%clk 0:01:54]} 18. Qxd5 {[%clk 0:01:15]}  Qe7 {[%clk 0:01:54]} 19. Rad1 {[%clk 0:01:04]}  Nb6 {[%clk 0:01:54]} 20. Qd8 {[%clk 0:00:46]}  Bg4 {[%clk 0:01:34]} 21. Qxe7 {[%clk 0:00:39]}  Bxe7 {[%clk 0:01:35]} 22. Ne3 {[%clk 0:00:36]}  Be6 {[%clk 0:01:35]} 23. Nd2 {[%clk 0:00:28]}  Rh4 {[%clk 0:01:30]} 24. g3 {[%clk 0:00:19]}  Rb4 {[%clk 0:01:30]} 25. f4 {[%clk 0:00:19]}  g6 {[%clk 0:01:28]} 26. Nf3 {[%clk 0:00:08]}  Rxb2 {[%clk 0:01:08]} 27. g4 {[%clk 0:00:08]}  Bb3 {[%clk 0:01:09]} 28. Rb1 {[%clk 0:00:07]}  Rxb1 {[%clk 0:00:55]} 29. Rxb1 {[%clk 0:00:08]}  c4 {[%clk 0:00:55]} 30. Kg2 {[%clk 0:00:04]}  Bc5 {[%clk 0:00:55]} 31. Nf1 {[%clk 0:00:01]}  Rd8 {[%clk 0:00:55]} 32. N1d2 {[%clk 0:00:02]}  Bxa4 {[%clk 0:00:39]} 33. Bxa4 {[%clk 0:00:02]}  Nxa4 {[%clk 0:00:40]} 34. Rxb7 {[%clk 0:00:02]}  c3 {[%clk 0:00:30]} 35. Ne4 {[%clk 0:00:02]}  c2 {[%clk 0:00:31]} 36. Nf6+ {[%clk 0:00:03]}  Kf8 {[%clk 0:00:31]} 37. Ng5 {[%clk 0:00:03]}  Be7 {[%clk 0:00:25]} 38. Ngh7+ {[%clk 0:00:02]}  Kg7 {[%clk 0:00:24]} 39. Rxe7 {[%clk 0:00:03]}  c1=Q {[%clk 0:00:23]} 40. Ng5 {[%clk 0:00:02]}  Rd2+ {[%clk 0:00:21]} 41. Kh3 {[%clk 0:00:03]}  Qf1+ {[%clk 0:00:22]} 42. Kh4 {[%clk 0:00:03]}  Qf2+ {[%clk 0:00:22]} 43. Kh3 {[%clk 0:00:02]}  Qxh2# {[%clk 0:00:23]} 0-1


[Site "https://www.chess.com"]

[Event "Titled Tuesday Blitz August 22 Late 2023"]
[White "Dobrikov, Marco"]
[Black "Antipov, Mikhail Al."]
[WhiteFideId "12950378"]
[BlackFideId "4107012"]
[WhiteElo "2576"]
[BlackElo "2928"]
[Result "1-0"]
[Round "2"]
[TimeControl "180+1"]
[Date "2023.08.22"]
[WhiteClock "0:00:03"]
[BlackClock "0:00:00"]
[Board "33"]

1. c4 {[%clk 0:03:00]}  e5 {[%clk 0:02:58]} 2. Nf3 {[%clk 0:02:59]}  Nc6 {[%clk 0:02:56]} 3. e4 {[%clk 0:02:58]}  Nf6 {[%clk 0:02:32]} 4. Nc3 {[%clk 0:02:56]}  a5 {[%clk 0:02:33]} 5. a3 {[%clk 0:02:51]}  Bc5 {[%clk 0:02:27]} 6. Nxe5 {[%clk 0:02:42]}  O-O {[%clk 0:02:27]} 7. Be2 {[%clk 0:02:23]}  Nxe5 {[%clk 0:02:06]} 8. d4 {[%clk 0:02:23]}  Bd6 {[%clk 0:02:07]} 9. c5 {[%clk 0:02:18]}  Bxc5 {[%clk 0:02:02]} 10. dxc5 {[%clk 0:01:55]}  d6 {[%clk 0:01:53]} 11. cxd6 {[%clk 0:01:54]}  cxd6 {[%clk 0:01:52]} 12. O-O {[%clk 0:01:53]}  Re8 {[%clk 0:01:51]} 13. f4 {[%clk 0:01:53]}  Neg4 {[%clk 0:01:49]} 14. Qd4 {[%clk 0:01:40]}  d5 {[%clk 0:01:25]} 15. e5 {[%clk 0:01:40]}  Ne4 {[%clk 0:01:25]} 16. Nxd5 {[%clk 0:01:22]}  Be6 {[%clk 0:01:16]} 17. Bxg4 {[%clk 0:01:22]}  Qxd5 {[%clk 0:01:16]} 18. Qxd5 {[%clk 0:01:21]}  Bxd5 {[%clk 0:01:17]} 19. Bf3 {[%clk 0:01:17]}  Bc6 {[%clk 0:01:01]} 20. Be3 {[%clk 0:01:15]}  f6 {[%clk 0:01:00]} 21. Rac1 {[%clk 0:01:10]}  f5 {[%clk 0:00:27]} 22. Rfd1 {[%clk 0:01:03]}  Red8 {[%clk 0:00:25]} 23. Bb6 {[%clk 0:01:00]}  Rxd1+ {[%clk 0:00:18]} 24. Rxd1 {[%clk 0:01:01]}  Kf7 {[%clk 0:00:19]} 25. Be2 {[%clk 0:00:55]}  a4 {[%clk 0:00:17]} 26. Bc4+ {[%clk 0:00:54]}  Ke7 {[%clk 0:00:18]} 27. h3 {[%clk 0:00:36]}  h5 {[%clk 0:00:15]} 28. Kh2 {[%clk 0:00:35]}  g6 {[%clk 0:00:12]} 29. Bc7 {[%clk 0:00:17]}  Rc8 {[%clk 0:00:11]} 30. Bd6+ {[%clk 0:00:16]}  Ke8 {[%clk 0:00:09]} 31. Be6 {[%clk 0:00:16]}  Bd7 {[%clk 0:00:09]} 32. Bd5 {[%clk 0:00:15]}  Bc6 {[%clk 0:00:08]} 33. Be6 {[%clk 0:00:11]}  Bd7 {[%clk 0:00:09]} 34. Bd5 {[%clk 0:00:10]}  Bc6 {[%clk 0:00:02]} 35. Bxc6+ {[%clk 0:00:10]}  Rxc6 {[%clk 0:00:02]} 36. Rd4 {[%clk 0:00:10]}  Kf7 {[%clk 0:00:02]} 37. Bb4 {[%clk 0:00:09]}  Ke6 {[%clk 0:00:02]} 38. Rd8 {[%clk 0:00:08]}  Rc2 {[%clk 0:00:02]} 39. Re8+ {[%clk 0:00:08]}  Kd5 {[%clk 0:00:02]} 40. Re7 {[%clk 0:00:07]}  h4 {[%clk 0:00:02]} 41. Rxb7 {[%clk 0:00:07]}  Rxb2 {[%clk 0:00:02]} 42. Rd7+ {[%clk 0:00:06]}  Ke6 {[%clk 0:00:02]} 43. Re7+ {[%clk 0:00:06]}  Kd5 {[%clk 0:00:02]} 44. Rg7 {[%clk 0:00:06]}  Ng3 {[%clk 0:00:02]} 45. Rxg6 {[%clk 0:00:05]}  Nf1+ {[%clk 0:00:02]} 46. Kg1 {[%clk 0:00:04]}  Ne3 {[%clk 0:00:03]} 47. e6 {[%clk 0:00:04]}  Re2 {[%clk 0:00:02]} 48. e7 {[%clk 0:00:03]}  Nc4 {[%clk 0:00:00]} 49. Rg7 {[%clk 0:00:03]} 1-0


[Site "https://www.chess.com"]

[Event "Titled Tuesday Blitz August 22 Late 2023"]
[White "Makarian, Rudik"]
[Black "Santos Flores, Alberto"]
[WhiteFideId "44105681"]
[BlackFideId "3601234"]
[WhiteElo "2928"]
[BlackElo "2576"]
[Result "1-0"]
[Round "2"]
[TimeControl "180+1"]
[Date "2023.08.22"]
[WhiteClock "0:00:44"]
[BlackClock "0:00:15"]
[Board "34"]

1. d4 {[%clk 0:03:00]}  d5 {[%clk 0:03:00]} 2. c4 {[%clk 0:03:01]}  c6 {[%clk 0:03:00]} 3. Nf3 {[%clk 0:03:02]}  Nf6 {[%clk 0:03:00]} 4. Qc2 {[%clk 0:03:02]}  g6 {[%clk 0:03:00]} 5. Nc3 {[%clk 0:03:01]}  Bf5 {[%clk 0:03:00]} 6. Qb3 {[%clk 0:03:00]}  Qb6 {[%clk 0:03:00]} 7. c5 {[%clk 0:02:45]}  Qc7 {[%clk 0:02:48]} 8. Bf4 {[%clk 0:02:43]}  Qc8 {[%clk 0:02:48]} 9. e3 {[%clk 0:02:43]}  Bg7 {[%clk 0:02:48]} 10. h3 {[%clk 0:02:41]}  Nbd7 {[%clk 0:02:47]} 11. Rc1 {[%clk 0:02:28]}  O-O {[%clk 0:02:47]} 12. Be2 {[%clk 0:02:27]}  Ne4 {[%clk 0:02:47]} 13. O-O {[%clk 0:02:24]}  Re8 {[%clk 0:02:44]} 14. Nxe4 {[%clk 0:02:12]}  Bxe4 {[%clk 0:02:43]} 15. Nd2 {[%clk 0:02:06]}  Bf5 {[%clk 0:02:42]} 16. Bh2 {[%clk 0:02:01]}  e5 {[%clk 0:02:40]} 17. e4 {[%clk 0:01:45]}  dxe4 {[%clk 0:02:33]} 18. Bc4 {[%clk 0:01:45]}  Be6 {[%clk 0:02:30]} 19. Nxe4 {[%clk 0:01:45]}  Bxc4 {[%clk 0:02:25]} 20. Qxc4 {[%clk 0:01:45]}  Qc7 {[%clk 0:02:01]} 21. Nd6 {[%clk 0:01:43]}  Re7 {[%clk 0:02:00]} 22. Rce1 {[%clk 0:01:25]}  b6 {[%clk 0:01:48]} 23. f4 {[%clk 0:01:21]}  bxc5 {[%clk 0:01:45]} 24. fxe5 {[%clk 0:01:21]}  cxd4 {[%clk 0:01:16]} 25. e6 {[%clk 0:00:45]}  fxe6 {[%clk 0:00:15]} 26. Rxe6 {[%clk 0:00:44]} 1-0


[Site "https://www.chess.com"]

[Event "Titled Tuesday Blitz August 22 Late 2023"]
[White "Willy, Stephen"]
[Black "Sanal, Vahap"]
[WhiteFideId "30981468"]
[BlackFideId "6300545"]
[WhiteElo "2565"]
[BlackElo "2917"]
[Result "0-1"]
[Round "2"]
[TimeControl "180+1"]
[Date "2023.08.22"]
[WhiteClock "0:00:01"]
[BlackClock "0:00:07"]
[Board "37"]

1. e4 {[%clk 0:03:00]}  d6 {[%clk 0:02:47]} 2. d4 {[%clk 0:03:00]}  Nf6 {[%clk 0:02:47]} 3. Nc3 {[%clk 0:02:59]}  e5 {[%clk 0:02:48]} 4. Nf3 {[%clk 0:02:58]}  Nbd7 {[%clk 0:02:48]} 5. h3 {[%clk 0:02:56]}  Be7 {[%clk 0:02:44]} 6. Be3 {[%clk 0:02:55]}  c6 {[%clk 0:02:44]} 7. Qd2 {[%clk 0:02:50]}  b5 {[%clk 0:02:44]} 8. Bd3 {[%clk 0:02:50]}  Bb7 {[%clk 0:02:38]} 9. Ne2 {[%clk 0:02:36]}  c5 {[%clk 0:02:20]} 10. dxe5 {[%clk 0:02:26]}  Nxe4 {[%clk 0:02:09]} 11. Bxe4 {[%clk 0:02:24]}  Bxe4 {[%clk 0:02:10]} 12. exd6 {[%clk 0:02:23]}  Bf6 {[%clk 0:02:11]} 13. Nc3 {[%clk 0:02:13]}  Bxf3 {[%clk 0:02:04]} 14. gxf3 {[%clk 0:02:13]}  Ne5 {[%clk 0:02:04]} 15. Qe2 {[%clk 0:02:09]}  O-O {[%clk 0:02:03]} 16. Bxc5 {[%clk 0:02:01]}  b4 {[%clk 0:01:57]} 17. Ne4 {[%clk 0:01:55]}  Nd7 {[%clk 0:01:57]} 18. Bxb4 {[%clk 0:01:19]}  Bxb2 {[%clk 0:01:55]} 19. Rb1 {[%clk 0:01:18]}  Be5 {[%clk 0:01:55]} 20. O-O {[%clk 0:01:13]}  Qh4 {[%clk 0:01:53]} 21. Kg2 {[%clk 0:01:11]}  Rae8 {[%clk 0:01:48]} 22. Qd2 {[%clk 0:01:03]}  Re6 {[%clk 0:01:40]} 23. Rh1 {[%clk 0:00:44]}  Rg6+ {[%clk 0:01:40]} 24. Kf1 {[%clk 0:00:44]}  Qh5 {[%clk 0:01:28]} 25. Qd3 {[%clk 0:00:37]}  Bf4 {[%clk 0:01:28]} 26. Ke2 {[%clk 0:00:31]}  Ne5 {[%clk 0:01:28]} 27. Qb3 {[%clk 0:00:20]}  Re6 {[%clk 0:01:28]} 28. d7 {[%clk 0:00:06]}  Nxf3 {[%clk 0:01:26]} 29. Bxf8 {[%clk 0:00:04]}  Nd4+ {[%clk 0:01:23]} 30. Kd3 {[%clk 0:00:03]}  Qe2+ {[%clk 0:00:42]} 31. Kxd4 {[%clk 0:00:03]}  Rxe4+ {[%clk 0:00:43]} 32. Kd5 {[%clk 0:00:03]}  Re5+ {[%clk 0:00:40]} 33. Kc6 {[%clk 0:00:02]}  Qa6+ {[%clk 0:00:40]} 34. Kc7 {[%clk 0:00:02]}  Rb5+ {[%clk 0:00:31]} 35. Kd8 {[%clk 0:00:02]}  Qf6+ {[%clk 0:00:21]} 36. Be7 {[%clk 0:00:02]}  Bc7+ {[%clk 0:00:06]} 37. Kxc7 {[%clk 0:00:02]}  Qb6+ {[%clk 0:00:06]} 38. Kc8 {[%clk 0:00:01]}  Qb8# {[%clk 0:00:07]} 0-1


[Site "https://www.chess.com"]

[Event "Titled Tuesday Blitz August 22 Late 2023"]
[White "Quesada Perez, Yasser"]
[Black "Souleidis, Georgios"]
[WhiteFideId "3509362"]
[BlackFideId "4206827"]
[WhiteElo "2915"]
[BlackElo "2563"]
[Result "1-0"]
[Round "2"]
[TimeControl "180+1"]
[Date "2023.08.22"]
[WhiteClock "0:00:47"]
[BlackClock "0:00:00"]
[Board "38"]

1. e4 {[%clk 0:03:00]}  c5 {[%clk 0:02:58]} 2. c3 {[%clk 0:03:01]}  d5 {[%clk 0:02:56]} 3. exd5 {[%clk 0:03:01]}  Qxd5 {[%clk 0:02:57]} 4. d4 {[%clk 0:03:02]}  Nf6 {[%clk 0:02:58]} 5. Nf3 {[%clk 0:03:02]}  Bg4 {[%clk 0:02:58]} 6. Be2 {[%clk 0:03:02]}  e6 {[%clk 0:02:56]} 7. Na3 {[%clk 0:03:02]}  cxd4 {[%clk 0:02:55]} 8. Nb5 {[%clk 0:02:59]}  Qd8 {[%clk 0:02:55]} 9. Qxd4 {[%clk 0:02:53]}  Nc6 {[%clk 0:02:41]} 10. Qxd8+ {[%clk 0:02:45]}  Rxd8 {[%clk 0:02:41]} 11. h3 {[%clk 0:02:29]}  Bh5 {[%clk 0:02:41]} 12. Be3 {[%clk 0:02:21]}  Nd5 {[%clk 0:02:23]} 13. Bxa7 {[%clk 0:02:10]}  Nxa7 {[%clk 0:02:16]} 14. Nxa7 {[%clk 0:02:11]}  Bc5 {[%clk 0:02:10]} 15. Nb5 {[%clk 0:02:09]}  Nf4 {[%clk 0:02:07]} 16. g4 {[%clk 0:01:55]}  Bg6 {[%clk 0:02:01]} 17. Ne5 {[%clk 0:01:56]}  Be4 {[%clk 0:01:28]} 18. f3 {[%clk 0:01:54]}  Bc2 {[%clk 0:01:19]} 19. Nd4 {[%clk 0:01:42]}  Bxd4 {[%clk 0:01:06]} 20. cxd4 {[%clk 0:01:43]}  Rxd4 {[%clk 0:01:00]} 21. Rc1 {[%clk 0:01:43]}  Rd5 {[%clk 0:00:39]} 22. Nxf7 {[%clk 0:01:15]}  Kxf7 {[%clk 0:00:39]} 23. Rxc2 {[%clk 0:01:15]}  Rhd8 {[%clk 0:00:32]} 24. Rh2 {[%clk 0:01:15]}  g5 {[%clk 0:00:29]} 25. h4 {[%clk 0:01:10]}  gxh4 {[%clk 0:00:26]} 26. Rc4 {[%clk 0:01:01]}  Nxe2 {[%clk 0:00:20]} 27. Rxe2 {[%clk 0:00:59]}  Rd1+ {[%clk 0:00:20]} 28. Kf2 {[%clk 0:00:59]}  h3 {[%clk 0:00:08]} 29. Kg3 {[%clk 0:00:57]}  R8d2 {[%clk 0:00:07]} 30. Rce4 {[%clk 0:00:56]}  Rxe2 {[%clk 0:00:07]} 31. Rxe2 {[%clk 0:00:56]}  Rf1 {[%clk 0:00:07]} 32. Rf2 {[%clk 0:00:52]}  Ra1 {[%clk 0:00:04]} 33. a3 {[%clk 0:00:51]}  Rh1 {[%clk 0:00:04]} 34. Rh2 {[%clk 0:00:46]}  Rg1+ {[%clk 0:00:04]} 35. Kxh3 {[%clk 0:00:46]}  e5 {[%clk 0:00:05]} 36. Re2 {[%clk 0:00:46]}  Kf6 {[%clk 0:00:04]} 37. Re4 {[%clk 0:00:46]}  h6 {[%clk 0:00:00]} 38. Rb4 {[%clk 0:00:47]} 1-0


[Site "https://www.chess.com"]

[Event "Titled Tuesday Blitz August 22 Late 2023"]
[White "Chor, Kevin"]
[Black "Ibarra Jerez, Jose Carlos"]
[WhiteFideId "2090740"]
[BlackFideId "2226332"]
[WhiteElo "2563"]
[BlackElo "2911"]
[Result "1-0"]
[Round "2"]
[TimeControl "180+1"]
[Date "2023.08.22"]
[WhiteClock "0:00:09"]
[BlackClock "0:00:03"]
[Board "39"]

1. e4 {[%clk 0:03:00]}  c5 {[%clk 0:02:58]} 2. Nf3 {[%clk 0:03:00]}  e6 {[%clk 0:02:57]} 3. d4 {[%clk 0:03:00]}  cxd4 {[%clk 0:02:57]} 4. Nxd4 {[%clk 0:03:00]}  Bc5 {[%clk 0:02:57]} 5. Nb3 {[%clk 0:02:51]}  Bb6 {[%clk 0:02:57]} 6. Nc3 {[%clk 0:02:49]}  Ne7 {[%clk 0:02:57]} 7. Be2 {[%clk 0:02:47]}  O-O {[%clk 0:02:58]} 8. O-O {[%clk 0:02:47]}  f5 {[%clk 0:02:59]} 9. Bg5 {[%clk 0:02:38]}  fxe4 {[%clk 0:02:55]} 10. Nxe4 {[%clk 0:02:37]}  d5 {[%clk 0:02:55]} 11. Ng3 {[%clk 0:02:38]}  Nbc6 {[%clk 0:02:55]} 12. c4 {[%clk 0:02:33]}  h6 {[%clk 0:02:51]} 13. cxd5 {[%clk 0:02:27]}  exd5 {[%clk 0:02:48]} 14. Bxe7 {[%clk 0:02:22]}  Qxe7 {[%clk 0:02:48]} 15. Qxd5+ {[%clk 0:02:14]}  Be6 {[%clk 0:02:48]} 16. Qe4 {[%clk 0:02:10]}  Qf7 {[%clk 0:02:41]} 17. Rad1 {[%clk 0:02:08]}  g6 {[%clk 0:01:58]} 18. Rd6 {[%clk 0:01:47]}  Rae8 {[%clk 0:01:53]} 19. Rxe6 {[%clk 0:01:47]}  Rxe6 {[%clk 0:01:50]} 20. Bc4 {[%clk 0:01:47]}  Nd8 {[%clk 0:01:14]} 21. Qc2 {[%clk 0:01:24]}  Kh7 {[%clk 0:01:06]} 22. Bxe6 {[%clk 0:01:18]}  Nxe6 {[%clk 0:01:07]} 23. h3 {[%clk 0:01:01]}  Nf4 {[%clk 0:01:02]} 24. Kh2 {[%clk 0:01:00]}  Bc7 {[%clk 0:00:56]} 25. Rc1 {[%clk 0:00:58]}  Bb8 {[%clk 0:00:52]} 26. Qc4 {[%clk 0:00:56]}  Qxc4 {[%clk 0:00:46]} 27. Rxc4 {[%clk 0:00:57]}  Nd3 {[%clk 0:00:47]} 28. Rd4 {[%clk 0:00:50]}  Nxf2 {[%clk 0:00:44]} 29. Rd7+ {[%clk 0:00:45]}  Kg8 {[%clk 0:00:44]} 30. Rxb7 {[%clk 0:00:42]}  h5 {[%clk 0:00:44]} 31. h4 {[%clk 0:00:38]}  Ng4+ {[%clk 0:00:43]} 32. Kh3 {[%clk 0:00:37]}  Be5 {[%clk 0:00:41]} 33. Nc5 {[%clk 0:00:28]}  Nf2+ {[%clk 0:00:35]} 34. Kh2 {[%clk 0:00:28]}  Rf4 {[%clk 0:00:22]} 35. Kg1 {[%clk 0:00:20]}  Bd4 {[%clk 0:00:19]} 36. Rb8+ {[%clk 0:00:20]}  Kg7 {[%clk 0:00:19]} 37. Ne6+ {[%clk 0:00:20]}  Kf6 {[%clk 0:00:16]} 38. Nxd4 {[%clk 0:00:17]}  Nd3 {[%clk 0:00:13]} 39. Rf8+ {[%clk 0:00:14]}  Ke5 {[%clk 0:00:13]} 40. Nc6+ {[%clk 0:00:15]}  Kd6 {[%clk 0:00:10]} 41. Rxf4 {[%clk 0:00:15]}  Nxf4 {[%clk 0:00:10]} 42. Nxa7 {[%clk 0:00:15]}  Nd3 {[%clk 0:00:10]} 43. b3 {[%clk 0:00:15]}  Nc1 {[%clk 0:00:09]} 44. Nb5+ {[%clk 0:00:15]}  Kc5 {[%clk 0:00:09]} 45. Nc3 {[%clk 0:00:15]}  Kb4 {[%clk 0:00:10]} 46. Nge4 {[%clk 0:00:14]}  Nd3 {[%clk 0:00:07]} 47. Kf1 {[%clk 0:00:13]}  Ne5 {[%clk 0:00:07]} 48. Ke2 {[%clk 0:00:14]}  Nf7 {[%clk 0:00:05]} 49. Ke3 {[%clk 0:00:13]}  Nh6 {[%clk 0:00:05]} 50. Kf4 {[%clk 0:00:12]}  Nf7 {[%clk 0:00:06]} 51. g3 {[%clk 0:00:11]}  Ka3 {[%clk 0:00:06]} 52. Ng5 {[%clk 0:00:10]}  Nd6 {[%clk 0:00:05]} 53. Ke5 {[%clk 0:00:10]}  Nf5 {[%clk 0:00:06]} 54. Nce4 {[%clk 0:00:09]}  Kxa2 {[%clk 0:00:05]} 55. Kf6 {[%clk 0:00:10]}  Kxb3 {[%clk 0:00:04]} 56. Kxg6 {[%clk 0:00:10]}  Ne3 {[%clk 0:00:05]} 57. Kxh5 {[%clk 0:00:10]}  Kc4 {[%clk 0:00:05]} 58. Kg6 {[%clk 0:00:10]}  Kd5 {[%clk 0:00:06]} 59. h5 {[%clk 0:00:09]}  Ng4 {[%clk 0:00:03]} 60. Nf6+ {[%clk 0:00:09]} 1-0


[Site "https://www.chess.com"]

[Event "Titled Tuesday Blitz August 22 Late 2023"]
[White "Erdogan, Anil Berk"]
[Black "Grigorjev, Iljya"]
[WhiteFideId "6348173"]
[BlackFideId "24159565"]
[WhiteElo "2560"]
[BlackElo "2893"]
[Result "0-1"]
[Round "2"]
[TimeControl "180+1"]
[Date "2023.08.22"]
[WhiteClock "0:00:00"]
[BlackClock "0:00:39"]
[Board "41"]

1. e4 {[%clk 0:03:00]}  e5 {[%clk 0:02:59]} 2. Nf3 {[%clk 0:03:01]}  Nc6 {[%clk 0:03:00]} 3. Bb5 {[%clk 0:03:01]}  a6 {[%clk 0:03:01]} 4. Ba4 {[%clk 0:03:02]}  Nf6 {[%clk 0:03:01]} 5. Bxc6 {[%clk 0:03:02]}  dxc6 {[%clk 0:03:01]} 6. d3 {[%clk 0:03:03]}  Bd6 {[%clk 0:02:59]} 7. Nbd2 {[%clk 0:03:03]}  Be6 {[%clk 0:02:57]} 8. Qe2 {[%clk 0:02:58]}  Nd7 {[%clk 0:02:37]} 9. Nc4 {[%clk 0:02:58]}  O-O {[%clk 0:02:12]} 10. Bd2 {[%clk 0:02:55]}  b5 {[%clk 0:02:06]} 11. Ne3 {[%clk 0:02:55]}  c5 {[%clk 0:02:01]} 12. h4 {[%clk 0:02:49]}  f6 {[%clk 0:01:49]} 13. h5 {[%clk 0:02:49]}  Nb8 {[%clk 0:01:50]} 14. Nh4 {[%clk 0:02:47]}  Nc6 {[%clk 0:01:50]} 15. c3 {[%clk 0:02:23]}  Rf7 {[%clk 0:01:42]} 16. Nhf5 {[%clk 0:02:18]}  Bf8 {[%clk 0:01:42]} 17. Rh3 {[%clk 0:02:13]}  Kh8 {[%clk 0:01:41]} 18. Rg3 {[%clk 0:01:42]}  Rd7 {[%clk 0:01:41]} 19. Ng4 {[%clk 0:01:28]}  c4 {[%clk 0:01:41]} 20. d4 {[%clk 0:01:05]}  exd4 {[%clk 0:01:41]} 21. cxd4 {[%clk 0:01:06]}  Nxd4 {[%clk 0:01:38]} 22. Nxd4 {[%clk 0:01:06]}  Rxd4 {[%clk 0:01:38]} 23. Bc3 {[%clk 0:01:07]}  Rd3 {[%clk 0:01:15]} 24. h6 {[%clk 0:00:34]}  Rxg3 {[%clk 0:01:15]} 25. fxg3 {[%clk 0:00:33]}  Qe7 {[%clk 0:00:57]} 26. O-O-O {[%clk 0:00:27]}  b4 {[%clk 0:00:58]} 27. Bd4 {[%clk 0:00:20]}  c5 {[%clk 0:00:54]} 28. hxg7+ {[%clk 0:00:15]}  Bxg7 {[%clk 0:00:55]} 29. Be3 {[%clk 0:00:16]}  c3 {[%clk 0:00:49]} 30. Rh1 {[%clk 0:00:08]}  cxb2+ {[%clk 0:00:49]} 31. Kb1 {[%clk 0:00:08]}  Qf7 {[%clk 0:00:42]} 32. Qxb2 {[%clk 0:00:05]}  Bxg4 {[%clk 0:00:42]} 33. Bxc5 {[%clk 0:00:04]}  a5 {[%clk 0:00:41]} 34. e5 {[%clk 0:00:03]}  fxe5 {[%clk 0:00:41]} 35. Bd6 {[%clk 0:00:02]}  Bf5+ {[%clk 0:00:40]} 36. Ka1 {[%clk 0:00:02]}  Qe6 {[%clk 0:00:39]} 37. Rd1 {[%clk 0:00:02]}  e4 {[%clk 0:00:39]} 38. Be5 {[%clk 0:00:00]}  Bxe5 {[%clk 0:00:39]} 0-1


[Site "https://www.chess.com"]